Cogmind - Beta 12 @@@ ROGUE MODE // 2023.04.21 @ 21:55:56 Player: wchar_t Result: Destroyed by D-53 Grenadier with Mini Grenade Launcher Performance ------------- Evolutions (1) 500 Regions Visited (4) 800 Robots Destroyed (0) 0 Value Destroyed (0) 0 Prototype IDs (0) 0 Alien Tech Used (0) 0 Bonus (200) 200 TOTAL SCORE: 1500 Bonus ------- Pacifist 200 Cogmind --------- Core Integrity 0/400 Matter 300/300 Energy 99/100 System Corruption 1% Temperature Cool (0) Movement Core (50) Location -9/Mines Parts ------- > --- POWER (1) -------- (None) > --- PROPULSION (3) --- (None) > --- UTILITY (3) ------ (None) > --- WEAPON (2) ------- (None) > --- INVENTORY (5) ---- Grenade Launcher Mace Heavy Hammer Peak State ------------ > --- POWER ------------ (None) > --- PROPULSION ------- Improved Hover Unit > --- UTILITY ---------- (None) > --- WEAPON ----------- Mace > --- INVENTORY -------- (None) [Rating: 4] Favorites ----------- Power None Propulsion Improved Hover Unit Hover Unit Improved Hover Unit Utility None Weapon Mace Impact Weapon Mace Build | -11 -10 -10 -9 -9 ------- Run | Jun Mat Min Mat Min Slots Evolved 2 | . . . 2 . Power . | . . . . . Propulsion 1 | . . . 1 . Utility 1 | . . . 1 . Weapon . | . . . . . Parts Attached 3 | . . . 3 . Power . | . . . . . Engine . | . . . . . Core . | . . . . . Reactor . | . . . . . Propulsion 2 | . . . 2 . Treads . | . . . . . Leg . | . . . . . Wheel . | . . . . . Hover 2 | . . . 2 . Flight . | . . . . . Utility . | . . . . . Device . | . . . . . Storage . | . . . . . Processor . | . . . . . Hackware . | . . . . . Protection . | . . . . . Artifact . | . . . . . Weapon 1 | . . . 1 . Energy Gun . | . . . . . Energy Cannon . | . . . . . Ballistic Gun . | . . . . . Ballistic Cannon . | . . . . . Launcher . | . . . . . Special Weapon . | . . . . . Impact Weapon 1 | . . . 1 . Slashing Weapon . | . . . . . Piercing Weapon . | . . . . . Special Melee Weapon . | . . . . . Unidentified Prototypes . | . . . . . Parts Lost 2 | . . . 1 1 Power . | . . . . . Propulsion 2 | . . . 1 1 Utility . | . . . . . Weapon . | . . . . . Highest Loss Streak 1 | . . . 1 1 To Critical Strikes . | . . . . . Average Slot Usage (%) 7 | . . . 5 10 Hover 7 | . . . 4 10 Naked Turns 109 | . 36 6 63 4 Heaviest Build 2 | . . . 2 . Greatest Support 7 | 3 3 3 7 3 Greatest Overweight (x) . | . . . . . Average Overweight (x) . | . . . . . Largest Inventory Capacity 5 | 5 5 5 5 5 Average Capacity 5 | 5 5 5 5 5 Most Carried 3 | . . . 1 3 Average Carried 1 | . . . . 2 Final Capacity 5 | 5 5 5 5 5 Final Carried 3 | . . . 1 3 Class Distribution -------------------- 100% | Mutant Dominant Class ---------------- Mutant | -10/Materials Mutant | -10/Mines Mutant | -9/Materials Mutant | -9/Mines Resources | -11 -10 -10 -9 -9 ----------- Run | Jun Mat Min Mat Min Matter Collected 207 | 153 . . 27 27 Remotely . | . . . . . Salvage Created . | . . . . . Parts . | . . . . . Haulers Intercepted . | . . . . . Recyclers Shooed . | . . . . . Parts Field Recycled . | . . . . . Retrieved Matter . | . . . . . Parts Self-Destructed . | . . . . . Prevented . | . . . . . Kills | -11 -10 -10 -9 -9 ------- Run | Jun Mat Min Mat Min Combat Hostiles Destroyed . | . . . . . Classes Destroyed . | . . . . . Best Kill Streak . | . . . . . Combat Bots Only . | . . . . . Max Kills in Single Turn . | . . . . . Gunslinging . | . . . . . Exploded . | . . . . . Melee . | . . . . . Uniques/NPCs Destroyed . | . . . . . Combat | -11 -10 -10 -9 -9 -------- Run | Jun Mat Min Mat Min Damage Taken 634 | . 153 . 240 241 Core 555 | . 153 . 196 206 Absorbed by Shields . | . . . . . Core Remaining (%) 69 | 100 . 38 . . Volleys Fired . | . . . . . Largest . | . . . . . Hottest . | . . . . . Shots Fired . | . . . . . Gun . | . . . . . Cannon . | . . . . . Launcher . | . . . . . Special . | . . . . . Kinetic . | . . . . . Thermal . | . . . . . Explosive . | . . . . . Electromagnetic . | . . . . . Robot Hit Streak . | . . . . . Robot Miss Streak . | . . . . . Penetration Max . | . . . . . Secondary Targets . | . . . . . Shots Hit Robots . | . . . . . Core Hits . | . . . . . Critical Kills . | . . . . . Critical Parts Destroyed . | . . . . . Critical Strikes . | . . . . . Melee Attacks 3 | . . . 3 . Impact 3 | . . . 3 . Slashing . | . . . . . Piercing . | . . . . . Sneak Attacks . | . . . . . Combat Hostiles . | . . . . . Follow-up Attacks . | . . . . . Damage Inflicted 42 | . . . 12 30 Guns . | . . . . . Cannons . | . . . . . Explosions . | . . . . . Melee . | . . . . . Ramming 42 | . . . 12 30 Kinetic . | . . . . . Thermal . | . . . . . Explosive . | . . . . . Electromagnetic . | . . . . . Impact . | . . . . . Slashing . | . . . . . Piercing . | . . . . . Highest Corruption 1 | . 1 1 . 1 Average Corruption 1 | . 1 1 . 1 Corruption Purged . | . . . . . Corruption Blocked . | . . . . . Effects 1 | . . . . 1 Data Loss (minor) 1 | . . . . 1 Overload Shots . | . . . . . Overflow Damage . | . . . . . Projectiles . | . . . . . Explosions . | . . . . . Melee . | . . . . . Knockbacks . | . . . . . Impact . | . . . . . Kinetic . | . . . . . Secondary . | . . . . . Self-Inflicted Damage 20 | . . . 6 14 Shots . | . . . . . Rammed 8 | . . . 2 6 Targets Rammed 8 | . . . 2 6 Kicked . | . . . . . Crushed . | . . . . . Highest Temperature 5 | . . . 5 . Average Temperature 5 | . . . 5 . Received Heat Transfer 198 | . 54 . 144 . Siege Activations . | . . . . . Robots Corrupted . | . . . . . Combat Hostiles . | . . . . . Parts Fried . | . . . . . Impact Corruptions . | . . . . . Robots Melted . | . . . . . Combat Hostiles . | . . . . . Parts Melted . | . . . . . Heat Transferred . | . . . . . Parts Sabotaged . | . . . . . Parts Stolen . | . . . . . Parts Stripped . | . . . . . Power Chain Reactions . | . . . . . Missiles Intercepted . | . . . . . Alert | -11 -10 -10 -9 -9 ------- Run | Jun Mat Min Mat Min Peak Influence 108 | . 38 14 108 42 Initial 42 | . . 14 5 42 Average 41 | . 18 14 54 41 Maximum Alert Level . | . . . . . Low Security (%) 100 | 100 100 100 100 100 Level 1 . | . . . . . Level 2 . | . . . . . Level 3 . | . . . . . Level 4 . | . . . . . Level 5 . | . . . . . High Security . | . . . . . Max Security . | . . . . . Squads Dispatched 1 | . . . 1 . Investigation 1 | . . . 1 . Extermination . | . . . . . Reinforcement . | . . . . . Assault . | . . . . . Garrison . | . . . . . Intercept . | . . . . . Searches Triggered . | . . . . . Construction Impeded . | . . . . . Haulers Reinforced . | . . . . . Active Scanning Responses . | . . . . . Cargo Convoy Interrupts . | . . . . . Stealth | -11 -10 -10 -9 -9 --------- Run | Jun Mat Min Mat Min Distress Signals 4 | . 1 . 2 1 Communications Jammed . | . . . . . Distress Signals . | . . . . . Times Spotted 23 | . 7 . 11 5 Peak Tracking Total 7 | . 7 . 7 3 Tactical Retreats 4 | . . . 2 2 Traps | -11 -10 -10 -9 -9 ------- Run | Jun Mat Min Mat Min Traps Triggered 2 | . 1 . 1 . Indirectly . | . . . . . Trap Hack Attempts . | . . . . . Triggered . | . . . . . Disarmed . | . . . . . Reprogrammed . | . . . . . Reused . | . . . . . Traps Extracted . | . . . . . Installed . | . . . . . Triggered . | . . . . . Machines | -11 -10 -10 -9 -9 ---------- Run | Jun Mat Min Mat Min Machines Disabled 1 | . . . 1 . Max in Single Turn 1 | . . . 1 . Machines Repaired . | . . . . . Machines Sabotaged . | . . . . . Overloaded Fab Kills . | . . . . . Hacking | -11 -10 -10 -9 -9 --------- Run | Jun Mat Min Mat Min Machines Accessed 3 | . 2 . 1 . Terminals 3 | . 2 . 1 . Fabricators . | . . . . . Repair Stations . | . . . . . Recycling Units . | . . . . . Scanalyzers . | . . . . . Garrison Access . | . . . . . Total Hacks 5 | . 4 . 1 . Successful 2 | . 1 . 1 . Failed 3 | . 3 . . . Catastrophic 1 | . 1 . . . Database Lockouts . | . . . . . Manual 2 | . 2 . . . Terminals 5 | . 4 . 1 . Fabricators . | . . . . . Repair Stations . | . . . . . Recycling Units . | . . . . . Scanalyzers . | . . . . . Garrison Access . | . . . . . Terminal Hacks 2 | . 1 . 1 . Branch Access Points 2 | . 1 . 1 . Fabricator Hacks . | . . . . . Repair Station Hacks . | . . . . . Recycling Unit Hacks . | . . . . . Scanalyzer . | . . . . . Garrison Access Hacks . | . . . . . Unauthorized Hacks . | . . . . . Terminals . | . . . . . Fabricators . | . . . . . Repair Stations . | . . . . . Recycling Units . | . . . . . Scanalyzers . | . . . . . Garrison Access . | . . . . . Data Cores Recovered . | . . . . . Used . | . . . . . Hacking Detections 2 | . 2 . . . Full Trace Events 1 | . 1 . . . Feedback Events . | . . . . . Feedback Blocked . | . . . . . Robot Schematics Acquired . | . . . . . Robots Built . | . . . . . Authchips . | . . . . . Time . | . . . . . Total Robot Build Rating . | . . . . . Part Schematics Acquired . | . . . . . Parts Built . | . . . . . Authchips . | . . . . . Time . | . . . . . Total Part Build Rating . | . . . . . Parts Repaired . | . . . . . Time . | . . . . . Parts Recycled . | . . . . . Recycled Matter . | . . . . . Retrieved Matter . | . . . . . Retrieved Components . | . . . . . Parts Scanalyzed . | . . . . . Part Schematics Acquired . | . . . . . Parts Damaged . | . . . . . Bothacking | -11 -10 -10 -9 -9 ------------ Run | Jun Mat Min Mat Min Used RIF Installer . | . . . . . Robots Hacked . | . . . . . Non-combat . | . . . . . Combat . | . . . . . Robot Hacks Applied . | . . . . . Relay Couplers Released . | . . . . . Fabnet Peak Effective % . | . . . . . Robots Rewired . | . . . . . Allies Hacked . | . . . . . Hacks Repelled . | . . . . . Allies | -11 -10 -10 -9 -9 -------- Run | Jun Mat Min Mat Min Total Allies . | . . . . . Largest Group . | . . . . . Highest-Rated Group . | . . . . . Highest-Rated Ally . | . . . . . Total Orders . | . . . . . Ally Attacks . | . . . . . Total Damage . | . . . . . Kills . | . . . . . Allies Corrupted . | . . . . . Allies Melted . | . . . . . Intel | -11 -10 -10 -9 -9 ------- Run | Jun Mat Min Mat Min Robot Analysis Total . | . . . . . Derelict Logs Recovered 1 | . . . . 1 Drone Launches . | . . . . . Drone Recoveries . | . . . . . Exploration | -11 -10 -10 -9 -9 ------------- Run | Jun Mat Min Mat Min Turns Passed 381 | 15 36 6 111 213 Spaces Moved 714 | 30 72 13 190 409 Core 713 | 30 72 13 189 409 Treads . | . . . . . Legs . | . . . . . Wheels . | . . . . . Hover 1 | . . . 1 . Flight . | . . . . . Fastest Speed 50 | 50 50 50 50 50 Average Speed 50 | 50 50 50 50 50 Slowest Speed 60 | 50 50 50 60 50 Overloaded Moves . | . . . . . Propulsion Burnouts . | . . . . . Robots Hopped . | . . . . . Cave-ins Triggered . | . . . . . Exploration Rate (%) 23 | 3 27 8 15 65 Regions Visited 4 Branch Regions 2 Pre-discovered Areas . | . . . . . Known Exits Taken 2 | . 1 . 1 . Unknown Exits Taken 2 | 1 . 1 . . Scrap Searched 2 | . . . . 2 Spaces Dug 1 | . . . 1 . Terrain Destroyed 1 | . . . 1 . Melee 1 | . . . 1 . Projectile . | . . . . . AOE . | . . . . . Terrain Rammed . | . . . . . Walls Destroyed . | . . . . . Machines Disabled . | . . . . . Actions | -11 -10 -10 -9 -9 --------- Run | Jun Mat Min Mat Min Total 728 | 29 71 12 199 417 Wait . | . . . . . Move 710 | 29 71 12 189 409 Hop . | . . . . . Pick Up 3 | . . . 1 2 Fast Attach 2 | . . . 2 . Attach 1 | . . . 1 . Detach 1 | . . . 1 . Swap . | . . . . . Drop . | . . . . . Fire . | . . . . . Melee 3 | . . . 3 . Ram 8 | . . . 2 6 Kick . | . . . . . Crush . | . . . . . Escape Stasis . | . . . . . Rewire . | . . . . . Trap . | . . . . . Miscellaneous . | . . . . . Route ------- -11/Junkyard -10/Materials (discovered 3 exits: *Mat / *Min x2) -10/Mines -9/Materials (discovered 2 exits: *Min x2) -9/Mines (discovered 2 exits: [*Mat x2]) History --------- Turn | Location | Event 4 | -11/Junkyard | Discovered new exit (range 14) 16 | -11/Junkyard | Entered Materials 39 | -10/Materials | Discovered new exit (range 15) 40 | -10/Materials | Identified exit to Mines 46 | -10/Materials | Core integrity fell below 50% 52 | -10/Materials | Entered Mines 56 | -10/Mines | Discovered new exit (range 5) 58 | -10/Mines | Entered Materials 58 | -9/Materials | Evolved 2 slots: Propulsion x1, Utility x1 83 | -9/Materials | Identified exit to Mines 169 | -9/Materials | Entered Mines 203 | -9/Mines | Discovered new exit (range 6) 210 | -9/Mines | Learned Materials emergency access door positions 241 | -9/Mines | Discovered new exit (range 8) 253 | -9/Mines | Assembled infested the area 265 | -9/Mines | Core integrity fell below 50% 302 | -9/Mines | Build established: Mutant 381 | -9/Mines | Core integrity fell below 20% 382 | -9/Mines | Destroyed by D-53 Grenadier with Mini Grenade Launcher Last Messages --------------- 00269_ Destabilizing: System corrupted (+1). 00302_ System corrupted: Component data lost. 00323_ K-01 Serf collects debris. 00352_ Slammed into K-01 Serf. 00369_ U-05 Engineer lays Concrete. 00370_ U-05 Engineer builds a Wall. 00373_ Slammed into U-05 Engineer. 00373_ Destabilizing: Core damaged (-8). 00374_ Slammed into U-05 Engineer. 00374_ Imp. Hover Unit broken. 00374_ Destabilizing: Short circuit. 00374_ U-05 Engineer sends out distress signal. 00376_ Searching scrap... 00376_ Found Hover Unit. 00376_ Found Imp. Ion Engine. 00376_ Found 22 Matter. 00377_ K-01 Serf destroyed. 00378_ Broken Imp. Hover Unit destroyed. 00378_ U-05 Engineer destroyed. 00382_ The unstable cave ceiling collapses. Map ----- +----------------------------------------------------+ | | | | | | | | | | | | | | | | | | | ???????????????????????????????????????? | | ???????????????????????????##??????????? | | ###????????????????????#### ##?????????? | | #??###??????????###### ###???????? | | #### ##?????#### ## #???????? | | ##???## # = * #???????? | | ##### #### #???????? | | ##?# %% ##??????? | | #####?# ### #??????? | | #?# ## % ##??????? | | ### ### ### ##### # ##??????? | | T# #?#######???### d #??????? | | ########????????????### #??????? | | #???????????????????# ##??????? | | #???????????????????# d #???????? | | #???????????????????# ##???????? | | #????????????????????# @ #????????? | | ##????????????????????# ##????????? | | ??????????????????????# % #?????????? | | ?????????????????????# ####?????????? | | ????????????????????# #????????????? | | ????????????????????# #????????????? | | ????????????????????# ????????????? | | ???????????????????? ????????????? | | ???????????????????r #????????????? | | ?????????????????? ###????????????? | | ?????????????????? #???????????????? | | ????????????????? ????????????????? | | ???????????????? #????????????????? | | ?????????????????? #?????????????????? | | ???????????????????????????????????????? | | ???????????????????????????????????????? | | ???????????????????????????????????????? | | ???????????????????????????????????????? | | ???????????????????????????????????????? | | ???????????????????????????????????????? | | ???????????????????????????????????????? | | ???????????????????????????????????????? | | ???????????????????????????????????????? | | ???????????????????????????????????????? | | ???????????????????????????????????????? | +----------------------------------------------------+ Best States ------------- Heat Dissipation 28 Energy Generation 5 Energy Capacity 100 Matter Stores 300 Matter Capacity 300 Sight Range 16 Terrain Scan Density 10 Evasion (%) 50 Item Schematics ----------------- None Robot Schematics ------------------ None Fabricated ------------ Nothing Alien Tech Used ----------------- None Achievements -------------- None Challenges ------------ None Game ------ Seed NovaLauncherFalx Manual? 0 Play Time 00:06:01 Cumulative 276.1 hours Start 2023.04.21 @ 21:51:42 End 2023.04.21 @ 21:55:56 Sessions 1 Manual Loads 0 Difficulty Rogue Special Mode None Game No. 115 Rogue 99 Adventurer 8 Explorer 8 Win Type - Total 20 Types 12/1/4/1/1/1/0/0/0 Lore% 87 Gallery% 84 Achievement% 75 Wizard Run 0 Options --------- ASCII 1 Keyboard 1 Movement Vi Keybinds 0 Fullscreen 1 Font 18/CogWide Map View 76x50 Tactical HUD 1 Map Filters NONE Filters NONE Steam 0 RUN: 3a789b6d-9090-4fcc-80db-c5fddfbdfc76